[Event "EYTCC U12 Open 2019"]
[Site "Pardubice"]
[Date "2019.07.16"]
[Round "6.6"]
[White "Konyves, Almos"]
[Black "Vagman, Roy"]
[Result "1-0"]
[ECO "A36"]
[WhiteElo "2104"]
[BlackElo "1941"]
[Annotator "NA"]
[PlyCount "119"]
[EventDate "2019.07.11"]
[EventType "swiss"]
[EventCountry "CZE"]
[SourceTitle "playchess.com"]
[Source "ChessBase"]
[SourceQuality "1"]
[WhiteTeam "Hungary"]
[BlackTeam "Israel"]
[WhiteTeamCountry "HUN"]
[BlackTeamCountry "ISR"]
[TimeControl "40/5400+30:1800+30"]

1. c4 {[%emt 0:00:00]} g6 {[%emt 0:00:00]} 2. Nc3 {[%emt 0:00:00]} c5 {[%emt 0:00:27]} 3. g3 {[%emt 0:00:08]} Bg7 {[%emt 0:00:41]} 4. Bg2 {[%emt 0:00:06]} Nc6 {[%emt 0:00:48]} 5. d3 {[%emt 0:00:17]} d6 {[%emt 0:02:16]} 6. e4 {[%emt 0:00:06]} e5 {[%emt 0:00:06]} 7. Nge2 {[%emt 0:00:07]} Nge7 {[%emt 0:00:08]} 8. O-O {[%emt 0:00:06]} O-O {[%emt 0:00:20]} 9. f4 {[%emt 0:00:04]} Rb8 {[%emt 0:01:23]} 10. Be3 {[%emt 0:02:12]} Nd4 {[%emt 0:02:08]} 11. Qd2 {[%emt 0:04:10]} Be6 {[%emt 0:07:47]} 12. h3 {[%emt 0:11:45]} Qd7 {[%emt 0:13:57]} 13. g4 {[%emt 0:09:01]} f5 {[%emt 0:10:24]} 14. gxf5 {[%emt 0:00:19]} gxf5 {[%emt 0:02:05]} 15. Kh2 {[%emt 0:02:02]} fxe4 {[%emt 0:03:41]} 16. Nxe4 {[%emt 0:02:50]} Kh8 {[%emt 0:16:33]} 17. N2g3 {[%emt 0:07:28]} Nef5 {[%emt 0:13:11]} 18. Bxd4 {[%emt 0:08:36]} exd4 {[%emt 0:01:29]} 19. Nxf5 {[%emt 0:12:34]} Bxf5 {[%emt 0:00:39]} 20. Ng3 {[%emt 0:00:08]} Bh6 {[%emt 0:03:10]} 21. Qe2 {[%emt 0:07:07]} Rbe8 {[%emt 0:04:41]} 22. Qh5 {[%emt 0:00:15]} Kg7 23. Be4 {[%emt 0:06:43]} Bg6 {[%emt 0:03:08]} 24. Qh4 {[%emt 0:00:11]} Qe7 {[%emt 0:02:19]} 25. Qxe7+ {[%emt 0:00:19]} Rxe7 {[%emt 0:00:06]} 26. f5 {[%emt 0:00:03]} Be8 {[%emt 0:00:27]} 27. f6+ {[%emt 0:00:14]} Rxf6 {[%emt 0:00:31]} 28. Nf5+ {[%emt 0:00:05]} Rxf5 {[%emt 0:00:06]} 29. Rxf5 {[%emt 0:00:05]} Be3 30. Rf3 {[%emt 0:05:25]} a6 {[%emt 0:08:17]} 31. Raf1 {[%emt 0:03:15]} Bg6 {[%emt 0:01:29]} 32. Rg3 {[%emt 0:01:53]} b5 33. b3 {[%emt 0:00:13]} Re6 {[%emt 0:02:14]} 34. Bxg6 {[%emt 0:02:17]} hxg6 {[%emt 0:00:07]} 35. Rgf3 {[%emt 0:00:19]} Re7 {[%emt 0:00:33]} 36. Kg2 {[%emt 0:03:09]} bxc4 {[%emt 0:01:24]} 37. bxc4 {[%emt 0:00:06]} Bg5 {[%emt 0:00:56]} 38. Kg3 {[%emt 0:01:13]} Bd2 {[%emt 0:00:29]} 39. Kg4 {[%emt 0:04:49]} a5 {[%emt 0:00:31]} 40. h4 {[%emt 0:03:53]} a4 {[%emt 0:00:00]} 41. h5 {[%emt 0:06:37]} d5 {[%emt 0:14:05]} 42. hxg6 {[%emt 0:04:00]} Kxg6 43. cxd5 {[%emt 0:00:37]} Rd7 {[%emt 0:04:05]} 44. Rf6+ {[%emt 0:00:36]} Kg7 45. d6 {[%emt 0:00:46]} c4 {[%emt 0:01:27]} 46. Re6 {[%emt 0:00:07]} Bb4 {[%emt 0:00:22]} 47. Re7+ {[%emt 0:00:03]} Rxe7 48. dxe7 {[%emt 0:00:03]} Bxe7 {[%emt 0:00:45]} 49. dxc4 Bb4 {[%emt 0:01:43]} 50. Rd1 {[%emt 0:01:14]} Bc3 {[%emt 0:00:08]} 51. Kf5 {[%emt 0:00:21]} Kf7 {[%emt 0:00:27]} 52. Rd3 {[%emt 0:00:06]} Ke7 {[%emt 0:00:36]} 53. Ke5 {[%emt 0:02:18]} a3 {[%emt 0:00:34]} 54. Rxd4 {[%emt 0:00:04]} Bxd4+ {[%emt 0:03:09]} 55. Kxd4 {[%emt 0:01:15]} Ke6 56. Kc5 {[%emt 0:00:07]} Ke5 {[%emt 0:01:23]} 57. Kb4 Kd4 {[%emt 0:00:32]} 58. c5 {[%emt 0:00:42]} Kd5 59. Kb5 {[%emt 0:00:11]} Kd4 {[%emt 0:01:00]} 60. c6 1-0

[Event "EYTCC U12 Open 2019"]
[Site "Pardubice"]
[Date "2019.07.16"]
[Round "6.7"]
[White "Uritsky, Yonathan"]
[Black "Gaal, Zsoka"]
[Result "1-0"]
[ECO "B47"]
[WhiteElo "2040"]
[BlackElo "2047"]
[Annotator "NA"]
[PlyCount "79"]
[EventDate "2019.07.11"]
[EventType "swiss"]
[EventCountry "CZE"]
[SourceTitle "playchess.com"]
[Source "ChessBase"]
[SourceQuality "1"]
[WhiteTeam "Israel"]
[BlackTeam "Hungary"]
[WhiteTeamCountry "ISR"]
[BlackTeamCountry "HUN"]
[TimeControl "40/5400+30:1800+30"]

1. e4 {[%emt 0:00:00]} c5 {[%emt 0:00:00]} 2. Nf3 {[%emt 0:00:10]} e6 {[%emt 0:00:00]} 3. d4 {[%emt 0:00:20]} cxd4 {[%emt 0:00:04]} 4. Nxd4 {[%emt 0:00:09]} Nc6 {[%emt 0:00:10]} 5. Nc3 {[%emt 0:00:14]} Qc7 {[%emt 0:00:08]} 6. g3 {[%emt 0:00:27]} a6 {[%emt 0:00:14]} 7. Bg2 {[%emt 0:00:25]} Nf6 {[%emt 0:00:13]} 8. O-O {[%emt 0:00:22]} d6 {[%emt 0:00:09]} 9. Re1 {[%emt 0:01:29]} Nd7 {[%emt 0:02:46]} 10. Nxc6 {[%emt 0:04:25]} bxc6 {[%emt 0:01:39]} 11. Na4 {[%emt 0:04:14]} Be7 {[%emt 0:03:01]} 12. c4 {[%emt 0:02:34]} O-O {[%emt 0:01:48]} 13. b3 {[%emt 0:01:41]} Bf6 {[%emt 0:04:08]} 14. Bb2 {[%emt 0:01:17]} Bxb2 {[%emt 0:00:30]} 15. Nxb2 {[%emt 0:00:10]} e5 {[%emt 0:00:55]} 16. Qd2 {[%emt 0:01:28]} Nc5 {[%emt 0:00:53]} 17. Rad1 {[%emt 0:00:55]} Rd8 {[%emt 0:00:15]} 18. Nd3 {[%emt 0:02:43]} Ne6 {[%emt 0:01:21]} 19. Qc3 {[%emt 0:04:50]} Nd4 {[%emt 0:03:56]} 20. c5 {[%emt 0:04:28]} Bg4 {[%emt 0:02:40]} 21. Rd2 {[%emt 0:04:36]} Qe7 {[%emt 0:10:26]} 22. h3 {[%emt 0:04:58]} Bf3 {[%emt 0:07:05]} 23. Re3 {[%emt 0:12:20]} Bxg2 {[%emt 0:05:01]} 24. Kxg2 {[%emt 0:00:18]} Nb5 {[%emt 0:02:09]} 25. Qb2 {[%emt 0:00:56]} dxc5 {[%emt 0:10:58]} 26. Rc2 {[%emt 0:01:07]} Rd4 {[%emt 0:12:14]} 27. Nxc5 {[%emt 0:01:57]} Nd6 {[%emt 0:03:46]} 28. Rd3 {[%emt 0:03:50]} Nb5 {[%emt 0:11:57]} 29. Rxd4 exd4 {[%emt 0:03:24]} 30. Rc4 {[%emt 0:15:28]} Rd8 31. Qe2 {[%emt 0:06:56]} g6 {[%emt 0:06:09]} 32. Qd3 {[%emt 0:01:25]} Qa7 {[%emt 0:01:04]} 33. b4 Re8 {[%emt 0:04:10]} 34. a4 {[%emt 0:02:54]} Nc7 {[%emt 0:01:58]} 35. Rxd4 {[%emt 0:00:36]} a5 {[%emt 0:01:03]} 36. Rd7 {[%emt 0:02:14]} axb4 {[%emt 0:00:47]} 37. Qd6 {[%emt 0:00:41]} Rc8 {[%emt 0:00:41]} 38. Qf6 {[%emt 0:00:38]} Rf8 {[%emt 0:00:24]} 39. Ne6 {[%emt 0:01:14]} Ne8 {[%emt 0:00:39]} 40. Qe7 {[%emt 0:00:44]} 1-0

[Event "EYTCC U12 Open 2019"]
[Site "Pardubice"]
[Date "2019.07.16"]
[Round "6.8"]
[White "Giang, Tran Nam"]
[Black "Tsirilman, Guy"]
[Result "1-0"]
[ECO "B90"]
[WhiteElo "1931"]
[BlackElo "1792"]
[Annotator "NA"]
[PlyCount "91"]
[EventDate "2019.07.11"]
[EventType "swiss"]
[EventCountry "CZE"]
[SourceTitle "playchess.com"]
[Source "ChessBase"]
[SourceQuality "1"]
[WhiteTeam "Hungary"]
[BlackTeam "Israel"]
[WhiteTeamCountry "HUN"]
[BlackTeamCountry "ISR"]
[TimeControl "40/5400+30:1800+30"]

1. e4 {[%emt 0:00:00]} c5 {[%emt 0:00:00]} 2. Nf3 {[%emt 0:00:00]} d6 {[%emt 0:00:19]} 3. d4 {[%emt 0:00:00]} cxd4 {[%emt 0:00:42]} 4. Nxd4 {[%emt 0:00:00]} Nf6 {[%emt 0:00:43]} 5. Nc3 {[%emt 0:00:00]} a6 {[%emt 0:00:53]} 6. h3 {[%emt 0:00:00]} e6 {[%emt 0:01:17]} 7. g4 {[%emt 0:00:20]} d5 {[%emt 0:03:41]} 8. exd5 {[%emt 0:01:30]} Nxd5 {[%emt 0:02:40]} 9. Bg2 {[%emt 0:06:26]} Nc6 {[%emt 0:07:12]} 10. Nxd5 {[%emt 0:10:01]} exd5 {[%emt 0:00:50]} 11. Be3 {[%emt 0:01:09]} Bd6 {[%emt 0:07:03]} 12. Qe2 {[%emt 0:07:57]} O-O {[%emt 0:01:41]} 13. O-O-O {[%emt 0:03:41]} Be6 {[%emt 0:05:55]} 14. Kb1 {[%emt 0:10:44]} Qc7 {[%emt 0:02:54]} 15. Nf5 {[%emt 0:05:31]} d4 {[%emt 0:07:42]} 16. Nxd4 {[%emt 0:05:06]} Nxd4 {[%emt 0:00:16]} 17. Bxd4 {[%emt 0:00:56]} Rfe8 {[%emt 0:03:00]} 18. Qf3 {[%emt 0:02:37]} Rac8 {[%emt 0:00:29]} 19. Qc3 {[%emt 0:07:36]} Qb8 {[%emt 0:09:45]} 20. Qd3 {[%emt 0:00:22]} Bc4 {[%emt 0:01:03]} 21. Qf5 {[%emt 0:02:10]} Bf4 {[%emt 0:01:14]} 22. Be4 {[%emt 0:03:56]} g6 {[%emt 0:02:07]} 23. Qf6 {[%emt 0:00:12]} Be5 {[%emt 0:00:04]} 24. Bxe5 {[%emt 0:00:26]} Rxe5 {[%emt 0:01:22]} 25. Bxb7 {[%emt 0:03:53]} Re6 {[%emt 0:07:29]} 26. Qf3 {[%emt 0:03:00]} Be2 {[%emt 0:09:44]} 27. Qb3 {[%emt 0:02:20]} Bc4 28. Qf3 {[%emt 0:02:24]} Be2 {[%emt 0:02:48]} 29. Qd5 {[%emt 0:01:06]} Rce8 {[%emt 0:14:14]} 30. Rd2 {[%emt 0:05:15]} Re5 31. Qg2 {[%emt 0:05:22]} Rb5 {[%emt 0:00:58]} 32. Rd7 {[%emt 0:01:22]} Rxb2+ {[%emt 0:03:40]} 33. Kxb2 {[%emt 0:02:14]} Qe5+ {[%emt 0:00:04]} 34. Kc1 {[%emt 0:01:17]} Qf4+ {[%emt 0:01:01]} 35. Rd2 {[%emt 0:01:51]} Qb4 {[%emt 0:03:16]} 36. Qc6 {[%emt 0:02:24]} Qa3+ {[%emt 0:00:32]} 37. Kb1 Qb4+ 38. Ka1 Bb5 {[%emt 0:00:30]} 39. Qd6 {[%emt 0:01:11]} Qc3+ {[%emt 0:00:32]} 40. Kb1 {[%emt 0:00:11]} Re6 {[%emt 0:00:52]} 41. Qd8+ {[%emt 0:31:04]} Re8 42. Qd4 {[%emt 0:00:27]} Qc7 {[%emt 0:30:38]} 43. Bd5 {[%emt 0:00:40]} Rb8 {[%emt 0:00:29]} 44. Bb3 a5 {[%emt 0:00:03]} 45. a4 {[%emt 0:01:26]} Qc6 46. Qd5 1-0

[Event "EYTCC U12 Open 2019"]
[Site "Pardubice"]
[Date "2019.07.16"]
[Round "6.9"]
[White "Tarhan, Adar"]
[Black "Maurizzi, Marc Andria"]
[Result "0-1"]
[ECO "B68"]
[WhiteElo "1972"]
[BlackElo "2412"]
[Annotator "NA"]
[PlyCount "66"]
[EventDate "2019.07.11"]
[EventType "swiss"]
[EventCountry "CZE"]
[SourceTitle "playchess.com"]
[Source "ChessBase"]
[SourceQuality "1"]
[WhiteTeam "Turkey"]
[BlackTeam "France"]
[WhiteTeamCountry "TUR"]
[BlackTeamCountry "FRA"]
[TimeControl "40/5400+30:1800+30"]

1. e4 {[%emt 0:00:00]} c5 {[%emt 0:00:00]} 2. Nf3 {[%emt 0:00:00]} d6 {[%emt 0:00:09]} 3. d4 {[%emt 0:02:33]} cxd4 {[%emt 0:00:03]} 4. Nxd4 {[%emt 0:00:04]} Nf6 {[%emt 0:00:04]} 5. Nc3 {[%emt 0:00:07]} Nc6 {[%emt 0:00:04]} 6. Bg5 {[%emt 0:00:54]} e6 {[%emt 0:00:06]} 7. Qd2 {[%emt 0:00:11]} a6 {[%emt 0:00:06]} 8. O-O-O {[%emt 0:00:05]} Bd7 {[%emt 0:00:03]} 9. f4 {[%emt 0:00:54]} Be7 {[%emt 0:00:04]} 10. Nf3 {[%emt 0:13:17]} b5 {[%emt 0:00:35]} 11. e5 {[%emt 0:03:00]} b4 {[%emt 0:00:07]} 12. exf6 {[%emt 0:00:38]} bxc3 {[%emt 0:00:05]} 13. Qxc3 {[%emt 0:00:21]} gxf6 {[%emt 0:00:01]} 14. Bh4 {[%emt 0:04:39]} a5 {[%emt 0:00:09]} 15. Kb1 {[%emt 0:01:26]} Rb8 {[%emt 0:25:18]} 16. Bd3 {[%emt 0:05:02]} Nb4 {[%emt 0:06:57]} 17. Rhe1 {[%emt 0:03:44]} Nd5 {[%emt 0:30:20]} 18. Qd2 {[%emt 0:02:07]} Qb6 {[%emt 0:00:18]} 19. b3 {[%emt 0:00:07]} Qb4 {[%emt 0:00:21]} 20. Kb2 {[%emt 0:02:26]} Qxd2 {[%emt 0:03:00]} 21. Rxd2 {[%emt 0:00:36]} Nxf4 {[%emt 0:00:04]} 22. Bf1 {[%emt 0:00:13]} e5 {[%emt 0:03:10]} 23. Bg3 {[%emt 0:01:28]} Ne6 {[%emt 0:00:13]} 24. Bc4 {[%emt 0:00:43]} Nc7 {[%emt 0:03:26]} 25. Rd3 {[%emt 0:03:05]} Be6 {[%emt 0:02:40]} 26. Nd2 {[%emt 0:00:19]} d5 {[%emt 0:00:19]} 27. Rc3 {[%emt 0:00:24]} dxc4 {[%emt 0:00:21]} 28. Nxc4 {[%emt 0:00:25]} Bb4 {[%emt 0:00:30]} 29. Nd6+ {[%emt 0:00:30]} Bxd6 {[%emt 0:00:06]} 30. Rd1 {[%emt 0:00:05]} Nb5 {[%emt 0:02:09]} 31. Rc6 {[%emt 0:00:11]} Kd7 {[%emt 0:00:20]} 32. Ra6 {[%emt 0:00:07]} Ra8 {[%emt 0:00:03]} 33. Rb6 {[%emt 0:00:11]} Rhb8 {[%emt 0:00:08]} 0-1

[Event "EYTCC U12 Open 2019"]
[Site "Pardubice"]
[Date "2019.07.16"]
[Round "6.10"]
[White "Makkar, Rajat"]
[Black "Celik, Hasan Huseyin"]
[Result "0-1"]
[ECO "E62"]
[WhiteElo "2064"]
[BlackElo "1903"]
[Annotator "NA"]
[PlyCount "100"]
[EventDate "2019.07.11"]
[EventType "swiss"]
[EventCountry "CZE"]
[SourceTitle "playchess.com"]
[Source "ChessBase"]
[SourceQuality "1"]
[WhiteTeam "France"]
[BlackTeam "Turkey"]
[WhiteTeamCountry "FRA"]
[BlackTeamCountry "TUR"]
[TimeControl "40/5400+30:1800+30"]

1. d4 {[%emt 0:00:00]} Nf6 {[%emt 0:00:00]} 2. c4 {[%emt 0:00:00]} g6 {[%emt 0:00:00]} 3. g3 {[%emt 0:00:53]} Bg7 {[%emt 0:00:00]} 4. Bg2 {[%emt 0:00:26]} O-O {[%emt 0:00:26]} 5. Nc3 {[%emt 0:00:29]} d6 {[%emt 0:00:06]} 6. Nf3 {[%emt 0:00:07]} c6 {[%emt 0:00:32]} 7. O-O {[%emt 0:00:30]} Qa5 {[%emt 0:00:09]} 8. e4 {[%emt 0:02:34]} e5 {[%emt 0:00:10]} 9. d5 {[%emt 0:01:42]} cxd5 {[%emt 0:00:33]} 10. cxd5 {[%emt 0:01:08]} b5 {[%emt 0:04:05]} 11. Nd2 {[%emt 0:10:42]} Bd7 {[%emt 0:03:10]} 12. Nb3 {[%emt 0:01:17]} Qc7 {[%emt 0:01:55]} 13. Be3 {[%emt 0:06:54]} Ng4 {[%emt 0:02:08]} 14. Nxb5 {[%emt 0:00:46]} Bxb5 {[%emt 0:00:48]} 15. Qxg4 {[%emt 0:00:05]} Bxf1 {[%emt 0:00:04]} 16. Bxf1 {[%emt 0:01:18]} f5 {[%emt 0:01:32]} 17. exf5 {[%emt 0:02:29]} gxf5 {[%emt 0:00:04]} 18. Qb4 {[%emt 0:01:45]} Qe7 {[%emt 0:11:00]} 19. f4 {[%emt 0:02:33]} Nd7 {[%emt 0:00:21]} 20. Rc1 {[%emt 0:00:13]} Rab8 {[%emt 0:10:57]} 21. Qd2 {[%emt 0:01:45]} exf4 {[%emt 0:01:41]} 22. Bxf4 {[%emt 0:00:49]} Ne5 {[%emt 0:00:03]} 23. Bg2 {[%emt 0:01:17]} Rfc8 {[%emt 0:02:29]} 24. Re1 {[%emt 0:01:31]} Qb7 {[%emt 0:01:45]} 25. Bxe5 {[%emt 0:04:04]} dxe5 {[%emt 0:01:02]} 26. Qg5 {[%emt 0:01:26]} Qb6+ {[%emt 0:06:28]} 27. Kh1 {[%emt 0:00:20]} Qg6 {[%emt 0:00:09]} 28. Qe7 {[%emt 0:00:34]} Qf7 {[%emt 0:00:23]} 29. Qxf7+ Kxf7 {[%emt 0:00:08]} 30. Rf1 {[%emt 0:09:15]} Kg6 {[%emt 0:02:18]} 31. Bh3 {[%emt 0:03:41]} Rf8 {[%emt 0:01:52]} 32. d6 {[%emt 0:03:51]} e4 {[%emt 0:01:13]} 33. Nc5 {[%emt 0:00:47]} Rf7 {[%emt 0:06:28]} 34. Ne6 {[%emt 0:04:08]} Rb5 {[%emt 0:03:12]} 35. g4 {[%emt 0:02:36]} fxg4 {[%emt 0:04:28]} 36. Rxf7 {[%emt 0:01:08]} Kxf7 {[%emt 0:00:01]} 37. d7 {[%emt 0:02:08]} Bf6 {[%emt 0:00:04]} 38. Bxg4 {[%emt 0:00:46]} Rd5 {[%emt 0:01:38]} 39. b4 {[%emt 0:01:33]} e3 {[%emt 0:00:15]} 40. Nc5 {[%emt 0:01:01]} Rd4 {[%emt 0:02:15]} 41. Bh5+ {[%emt 0:31:29]} Ke7 42. Kg2 {[%emt 0:05:32]} Rxb4 {[%emt 0:33:04]} 43. Kf3 {[%emt 0:00:54]} Rb5 {[%emt 0:00:40]} 44. d8=Q+ {[%emt 0:00:36]} Kxd8 {[%emt 0:00:07]} 45. Ne6+ {[%emt 0:00:13]} Ke7 {[%emt 0:00:08]} 46. Bg4 {[%emt 0:00:02]} h5 {[%emt 0:00:07]} 47. Bh3 {[%emt 0:00:16]} e2 {[%emt 0:00:23]} 48. Kxe2 {[%emt 0:00:32]} Re5+ {[%emt 0:00:06]} 49. Kd3 {[%emt 0:00:11]} Rxe6 {[%emt 0:00:04]} 50. Bxe6 {[%emt 0:00:07]} Kxe6 {[%emt 0:00:01]} 0-1

[Event "EYTCC U12 Open 2019"]
[Site "Pardubice"]
[Date "2019.07.16"]
[Round "6.11"]
[White "Portakalci, Yusuf"]
[Black "Mekhane, Adam"]
[Result "1/2-1/2"]
[ECO "D71"]
[WhiteElo "1764"]
[BlackElo "2040"]
[Annotator "NA"]
[PlyCount "90"]
[EventDate "2019.07.11"]
[EventType "swiss"]
[EventCountry "CZE"]
[SourceTitle "playchess.com"]
[Source "ChessBase"]
[SourceQuality "1"]
[WhiteTeam "Turkey"]
[BlackTeam "France"]
[WhiteTeamCountry "TUR"]
[BlackTeamCountry "FRA"]
[TimeControl "40/5400+30:1800+30"]

1. d4 {[%emt 0:00:00]} Nf6 {[%emt 0:00:00]} 2. c4 {[%emt 0:00:00]} g6 {[%emt 0:00:00]} 3. g3 {[%emt 0:00:00]} Bg7 {[%emt 0:00:00]} 4. Bg2 {[%emt 0:00:00]} O-O {[%emt 0:00:05]} 5. Nc3 {[%emt 0:00:00]} c5 {[%emt 0:00:17]} 6. d5 {[%emt 0:01:08]} d6 {[%emt 0:00:21]} 7. Nf3 {[%emt 0:00:29]} e6 {[%emt 0:00:20]} 8. O-O {[%emt 0:00:44]} exd5 {[%emt 0:00:24]} 9. cxd5 {[%emt 0:00:31]} Re8 {[%emt 0:00:09]} 10. Re1 {[%emt 0:02:11]} a6 {[%emt 0:09:48]} 11. a4 {[%emt 0:02:34]} Nbd7 {[%emt 0:13:05]} 12. e4 {[%emt 0:05:01]} Ne5 {[%emt 0:04:33]} 13. Nxe5 {[%emt 0:01:51]} Rxe5 {[%emt 0:00:13]} 14. Qc2 {[%emt 0:03:29]} Re8 {[%emt 0:03:12]} 15. h3 {[%emt 0:07:19]} Rb8 {[%emt 0:05:13]} 16. a5 {[%emt 0:10:23]} b5 {[%emt 0:04:46]} 17. axb6 {[%emt 0:09:50]} Qxb6 {[%emt 0:01:32]} 18. Ra3 {[%emt 0:01:51]} Nd7 {[%emt 0:08:53]} 19. Na4 {[%emt 0:07:13]} Qb7 {[%emt 0:11:52]} 20. Re2 {[%emt 0:13:18]} Nb6 {[%emt 0:04:23]} 21. Rb3 {[%emt 0:01:41]} Qc7 {[%emt 0:00:31]} 22. Nxb6 {[%emt 0:00:44]} Rxb6 {[%emt 0:00:19]} 23. Rxb6 {[%emt 0:00:33]} Qxb6 {[%emt 0:00:07]} 24. f4 {[%emt 0:04:58]} Bd7 {[%emt 0:02:55]} 25. Be3 {[%emt 0:03:01]} Qc7 {[%emt 0:12:12]} 26. Bf2 {[%emt 0:06:36]} h5 27. Qc1 {[%emt 0:06:54]} a5 {[%emt 0:03:42]} 28. Kh2 {[%emt 0:01:39]} Bb5 29. Re1 a4 {[%emt 0:08:11]} 30. f5 {[%emt 0:06:10]} Qe7 {[%emt 0:01:43]} 31. Be3 {[%emt 0:00:40]} Qe5 {[%emt 0:02:16]} 32. Bf4 {[%emt 0:01:48]} Qxb2 {[%emt 0:00:09]} 33. fxg6 {[%emt 0:00:29]} fxg6 {[%emt 0:00:41]} 34. Bxd6 {[%emt 0:00:37]} a3 {[%emt 0:02:46]} 35. Qxc5 {[%emt 0:00:54]} a2 {[%emt 0:01:52]} 36. Bf4 {[%emt 0:02:48]} Qb1 {[%emt 0:00:09]} 37. Rxb1 {[%emt 0:00:10]} axb1=Q {[%emt 0:01:05]} 38. d6 {[%emt 0:00:52]} Qb2 39. e5 {[%emt 0:00:05]} Bf1 {[%emt 0:01:02]} 40. Qd5+ {[%emt 0:00:32]} Kh7 {[%emt 0:00:00]} 41. d7 {[%emt 0:00:59]} Rd8 {[%emt 0:22:03]} 42. e6 {[%emt 0:04:07]} Qe2 {[%emt 0:00:27]} 43. Bg5 {[%emt 0:00:05]} Bxg2 {[%emt 0:00:06]} 44. Qxg2 {[%emt 0:00:30]} Qxe6 {[%emt 0:00:30]} 45. Bxd8 {[%emt 0:00:30]} Qxd7 {[%emt 0:00:30]} 1/2-1/2

[Event "EYTCC U12 Open 2019"]
[Site "Pardubice"]
[Date "2019.07.16"]
[Round "6.12"]
[White "Bat, Bilguun"]
[Black "Durak, Can"]
[Result "1-0"]
[ECO "D05"]
[WhiteElo "2093"]
[BlackElo "1753"]
[Annotator "NA"]
[PlyCount "37"]
[EventDate "2019.07.11"]
[EventType "swiss"]
[EventCountry "CZE"]
[SourceTitle "playchess.com"]
[Source "ChessBase"]
[SourceQuality "1"]
[WhiteTeam "France"]
[BlackTeam "Turkey"]
[WhiteTeamCountry "FRA"]
[BlackTeamCountry "TUR"]
[TimeControl "40/5400+30:1800+30"]

1. d4 {[%emt 0:00:00]} d5 {[%emt 0:00:00]} 2. Nf3 {[%emt 0:00:00]} Nf6 {[%emt 0:00:00]} 3. e3 {[%emt 0:00:00]} e6 {[%emt 0:00:00]} 4. Bd3 {[%emt 0:00:00]} Bd6 {[%emt 0:00:03]} 5. O-O {[%emt 0:00:00]} c5 {[%emt 0:00:15]} 6. b3 {[%emt 0:00:05]} O-O {[%emt 0:00:04]} 7. Bb2 {[%emt 0:00:06]} Nc6 {[%emt 0:00:05]} 8. Ne5 {[%emt 0:00:11]} cxd4 {[%emt 0:04:19]} 9. exd4 {[%emt 0:00:10]} Qc7 {[%emt 0:02:15]} 10. f4 {[%emt 0:00:08]} Nb4 {[%emt 0:01:17]} 11. Nc3 {[%emt 0:00:11]} Nxd3 {[%emt 0:03:26]} 12. Qxd3 {[%emt 0:00:06]} a6 {[%emt 0:04:18]} 13. Rf3 {[%emt 0:00:34]} b5 {[%emt 0:06:02]} 14. Rh3 {[%emt 0:00:27]} Bb7 {[%emt 0:02:32]} 15. Ng4 {[%emt 0:00:10]} Ne4 {[%emt 0:02:49]} 16. Nxe4 {[%emt 0:00:06]} dxe4 {[%emt 0:05:02]} 17. Nf6+ {[%emt 0:00:08]} gxf6 {[%emt 0:00:10]} 18. Qg3+ {[%emt 0:00:06]} Kh8 {[%emt 0:00:05]} 19. Qh4 {[%emt 0:00:04]} 1-0

[Event "EYTCC U12 Open 2019"]
[Site "Pardubice"]
[Date "2019.07.16"]
[Round "6.13"]
[White "Day, Tobias"]
[Black "Bakiev, Diyor"]
[Result "0-1"]
[ECO "C54"]
[WhiteElo "1826"]
[BlackElo "2121"]
[Annotator "ChessBase"]
[PlyCount "124"]
[EventDate "2019.07.11"]
[EventType "swiss"]
[EventCountry "CZE"]
[SourceTitle "playchess.com"]
[Source "ChessBase"]
[SourceQuality "1"]
[WhiteTeam "Czech Republic"]
[BlackTeam "Germany"]
[WhiteTeamCountry "CZE"]
[BlackTeamCountry "GER"]
[TimeControl "40/5400+30:1800+30"]

1. e4 {[%emt 0:00:00]} e5 {[%emt 0:00:00]} 2. Nf3 {[%emt 0:00:00]} Nc6 {[%emt 0:00:00]} 3. Bc4 {[%emt 0:00:00]} Bc5 {[%emt 0:00:25]} 4. c3 {[%emt 0:00:04]} Nf6 {[%emt 0:00:11]} 5. d3 {[%emt 0:00:23]} d6 {[%emt 0:00:13]} 6. Nbd2 {[%emt 0:00:47]} a6 {[%emt 0:00:30]} 7. Bb3 {[%emt 0:00:21]} O-O {[%emt 0:00:17]} 8. O-O {[%emt 0:00:45]} Ba7 {[%emt 0:00:21]} 9. h3 {[%emt 0:01:02]} h6 {[%emt 0:00:53]} 10. Re1 {[%emt 0:02:04]} Be6 {[%emt 0:01:25]} 11. Bc2 {[%emt 0:02:49]} Ne7 {[%emt 0:01:08]} 12. Nf1 {[%emt 0:02:03]} Ng6 {[%emt 0:00:22]} 13. Be3 {[%emt 0:02:21]} Re8 {[%emt 0:13:46]} 14. d4 {[%emt 0:09:46]} Nh7 {[%emt 0:21:31]} 15. Qd2 {[%emt 0:06:56]} c6 {[%emt 0:11:01]} 16. Rad1 {[%emt 0:08:13]} Qc7 {[%emt 0:01:58]} 17. Ng3 {[%emt 0:01:43]} Rad8 {[%emt 0:04:09]} 18. d5 {[%emt 0:07:40]} Bxe3 {[%emt 0:01:06]} 19. Qxe3 {[%emt 0:00:46]} Bc8 {[%emt 0:02:19]} 20. c4 {[%emt 0:15:45]} Nf4 {[%emt 0:07:51]} 21. Rc1 {[%emt 0:05:38]} c5 {[%emt 0:02:02]} 22. Ba4 {[%emt 0:01:45]} Rf8 {[%emt 0:00:57]} 23. Nh4 {[%emt 0:04:53]} Qe7 {[%emt 0:05:21]} 24. Nhf5 {[%emt 0:03:07]} Bxf5 {[%emt 0:01:59]} 25. Nxf5 {[%emt 0:05:21]} Qg5 {[%emt 0:00:12]} 26. Ng3 {[%emt 0:00:50]} h5 {[%emt 0:02:46]} 27. Qf3 {[%emt 0:02:19]} h4 {[%emt 0:01:17]} 28. Ne2 {[%emt 0:00:54]} Nh5 {[%emt 0:02:21]} 29. Bc2 {[%emt 0:01:32]} g6 {[%emt 0:01:52]} 30. Qg4 {[%emt 0:02:59]} Qe7 {[%emt 0:02:59]} 31. f4 {[%emt 0:03:26]} Ng7 {[%emt 0:04:40]} 32. f5 {[%emt 0:01:23]} gxf5 {[%emt 0:02:34]} 33. exf5 {[%emt 0:00:19]} Qg5 {[%emt 0:00:30]} 34. Qxg5 {[%emt 0:01:54]} Nxg5 {[%emt 0:00:01]} 35. Nc3 {[%emt 0:01:36]} Nh5 {[%emt 0:00:59]} 36. Ne4 {[%emt 0:00:24]} Nxe4 {[%emt 0:01:38]} 37. Rxe4 {[%emt 0:00:40]} Nf4 {[%emt 0:00:22]} 38. Bd1 {[%emt 0:02:04]} Kh7 {[%emt 0:02:00]} 39. Rc3 {[%emt 0:01:03]} Rg8 {[%emt 0:00:38]} 40. Bg4 {[%emt 0:00:22]} Rb8 {[%emt 0:02:07]} 41. a4 {[%emt 0:33:17]} b5 {[%emt 0:32:25]} 42. axb5 {[%emt 0:00:00]} axb5 {[%emt 0:00:00]} 43. b3 {[%emt 0:00:00]} bxc4 {[%emt 0:00:00]} 44. Rexc4 {[%emt 0:00:00]} Rb6 {[%emt 0:00:00]} 45. f6 {[%emt 0:00:00]} Kg6 {[%emt 0:00:00]} 46. g3 {[%emt 0:00:00]} hxg3 {[%emt 0:00:00]} 47. Rxg3 {[%emt 0:00:00]} Kxf6 {[%emt 0:00:00]} 48. Kf2 {[%emt 0:00:00]} Rgb8 {[%emt 0:00:00]} 49. Rcc3 {[%emt 0:00:00]} Nxd5 {[%emt 0:00:00]} 50. Rcf3+ {[%emt 0:00:00]} Nf4 {[%emt 0:00:00]} 51. h4 {[%emt 0:00:00]} d5 {[%emt 0:00:00]} 52. h5 {[%emt 0:00:00]} d4 {[%emt 0:00:00]} 53. h6 {[%emt 0:00:00]} Ke7 {[%emt 0:00:00]} 54. h7 {[%emt 0:00:00]} Ng6 {[%emt 0:00:00]} 55. Rh3 {[%emt 0:00:00]} e4 {[%emt 0:00:15]} 56. Rf5 {[%emt 0:00:00]} Rf6 {[%emt 0:00:57]} 57. Ke1 {[%emt 0:00:00]} Rxf5 {[%emt 0:02:59]} 58. Bxf5 {[%emt 0:00:00]} Rh8 {[%emt 0:00:31]} 59. Bxe4 {[%emt 0:00:00]} Kf6 {[%emt 0:00:47]} 60. Rh5 {[%emt 0:00:00]} Kg7 {[%emt 0:01:20]} 61. Rxc5 {[%emt 0:00:00]} Re8 {[%emt 0:00:31]} 62. h8=Q+ {[%emt 0:00:00]} Kxh8 {[%emt 0:00:43]} 0-1